bitfinex/quotes_ETHUSD_20250517
["timestamp","ask_amount","ask_price","bid_price","bid_amount"]
[1747508705071,12.05353866,2467.0,2466.8,0.61518313]
[1747508705263,12.60353866,2467.0,2466.9,0.22692377]
[1747508705665,13.02883866,2467.0,2466.9,0.22692377]
[1747508706070,12.60367059,2466.9,2466.8,0.38825936]
[1747508706262,0.55,2466.7,2466.6,7.701]
[1747508706462,0.55,2466.7,2466.6,8.51950712]
[1747508706958,0.55,2466.7,2466.6,8.74687771]
[1747508707490,4.60399927,2466.7,2466.6,8.74687771]
[1747508707686,4.60399927,2466.7,2466.6,0.22737059]
[1747508707845,4.60399927,2466.7,2466.6,0.61534772]
[1747508710058,12.60399927,2466.7,2466.6,0.61534772]
[1747508710890,12.60399927,2466.7,2466.6,0.38797713]
[1747508711393,0.55,2466.4,2466.2,25.211]
[1747508711555,0.55,2466.4,2466.3,2.59986]
[1747508711753,12.63875716,2466.4,2466.3,0.22735189]
[1747508712069,12.60449237,2466.4,2466.3,0.22735189]
[1747508713393,12.05482118,2466.2,2466.1,7.7]
[1747508714387,12.05482118,2466.2,2466.1,7.92737704]
[1747508716899,8.0,2466.2,2466.1,7.92737704]
[1747508717086,8.55,2466.2,2466.1,8.72011474]
[1747508718678,0.55,2466.2,2466.1,8.72011474]
[1747508718879,0.55,2466.2,2466.1,9.10810744]
[1747508719391,0.55,2466.2,2466.1,9.91850744]
[1747508722406,0.55,2466.2,2466.1,9.91682887]
[1747508725378,4.6041629,2466.7,2466.2,4.05472838]
[1747508725578,0.55,2466.5,2466.2,4.05472838]
[1747508725793,0.55,2466.5,2466.2,5.85739122]
[1747508725989,0.55,2466.5,2466.3,0.22737704]
[1747508726513,4.60433068,2466.5,2466.3,0.22737704]
[1747508726726,4.60433068,2466.5,2466.4,7.92437704]
[1747508727216,0.55,2466.5,2466.4,7.92437704]
[1747508727421,0.55,2466.5,2466.4,9.30254851]
[1747508727577,8.0,2466.7,2466.4,10.08334851]
[1747508727779,4.47833348,2467.3,2466.7,4.05393202]
[1747508728099,4.05345742,2467.1,2466.7,0.7808]
[1747508728300,4.05331031,2467.2,2466.8,0.22737704]
[1747508728481,4.6033651,2467.1,2466.8,0.61536974]
[1747508728683,0.55,2466.9,2466.8,0.61536974]
[1747508732417,4.60335102,2467.1,2466.8,0.61536974]
[1747508732598,0.55,2467.1,2466.8,5.21408587]
[1747508732914,0.55,2467.1,2466.9,0.3879927]
[1747508733113,0.55,2467.1,2466.9,12.13863387]
[1747508733314,8.0,2467.3,2466.9,12.13863387]
[1747508733315,4.05305541,2467.3,2466.9,12.13863387]
[1747508733618,4.60320826,2467.2,2466.9,8.0349927]
[1747508733915,0.55,2467.2,2467.0,0.22713081]
[1747508734296,4.6031943,2467.2,2467.0,0.22713081]
[1747508734500,0.55,2467.2,2467.1,0.22713081]
[1747508734706,4.60317769,2467.2,2467.1,0.22713081]
[1747508735333,4.60317769,2467.2,2467.1,0.17713081]
[1747508735492,4.60317769,2467.2,2466.9,7.697]
[1747508736634,4.60317769,2467.2,2466.9,7.647]
[1747508737223,0.55,2467.2,2466.9,13.00326308]
[1747508737425,0.55,2467.2,2466.9,1.30266255]
[1747508737626,4.60348326,2467.1,2467.0,7.696]
[1747508738292,0.55,2467.1,2467.0,7.696]
[1747508740335,0.4253,2467.7,2467.1,0.7651]
[1747508740492,0.55,2467.6,2467.1,0.7651]
[1747508740697,0.4253,2467.7,2467.1,0.7651]
[1747508740698,8.55,2467.4,2467.1,0.7651]
[1747508741095,0.55,2467.6,2467.1,2.42191066]
[1747508741429,8.55,2467.4,2467.1,6.47513568]
[1747508741609,8.55,2467.4,2467.1,2.42191066]
[1747508741791,8.55,2467.4,2467.2,7.696]
[1747508742727,8.0,2467.4,2467.2,7.696]
[1747508742928,0.55,2467.5,2467.3,1.41712457]
[1747508743098,0.55,2467.5,2467.2,7.696]
[1747508744035,8.55,2467.6,2467.2,11.74914638]
[1747508744226,4.05212529,2467.9,2467.4,0.8059]
[1747508744403,4.05202804,2467.9,2467.4,0.8059]
[1747508744604,4.05231158,2467.8,2467.4,0.8059]
[1747508744933,0.55,2467.7,2467.4,0.8059]
[1747508745133,0.55,2467.8,2467.4,6.11421959]
[1747508745498,12.60221369,2467.8,2467.4,2.06138419]
[1747508746639,12.60221369,2467.8,2467.5,0.38695634]
[1747508746640,4.05238202,2467.7,2467.5,0.38695634]
[1747508747014,4.60252066,2467.6,2467.5,0.38695634]
[1747508747806,4.05236327,2467.7,2467.5,1.19285634]
[1747508748014,12.05226846,2467.8,2467.5,1.71743388]
[1747508748234,12.05226846,2467.8,2467.5,1.19285634]
[1747508748437,4.05199745,2468.0,2467.6,7.691]
[1747508748639,0.55,2467.8,2467.6,7.691]
[1747508749137,4.60226724,2467.8,2467.7,7.69]
[1747508749448,4.6021093,2467.9,2467.7,0.38695634]
[1747508749622,4.6021093,2467.9,2467.8,7.69]
[1747508753125,0.55,2467.9,2467.8,7.69]
[1747508753723,4.05176514,2468.1,2467.8,7.69]
[1747508753912,4.60186483,2468.0,2467.8,7.69]
[1747508755023,4.60186483,2468.0,2467.9,7.689]
[1747508756345,0.55,2468.0,2467.9,7.689]
[1747508756714,0.55,2468.0,2467.9,8.5203]
[1747508756917,4.60186385,2468.0,2467.9,8.5203]
[1747508758453,8.0,2468.4,2467.9,12.79909807]
[1747508758652,8.4253,2468.7,2467.9,9.59913405]
[1747508758854,4.05087904,2468.6,2467.9,8.74710405]
[1747508759157,4.05155506,2468.2,2468.0,7.91580405]
[1747508759321,4.05150739,2468.3,2468.0,7.91580405]
[1747508759521,0.55,2468.2,2468.0,9.96432517]
[1747508760254,4.60139474,2468.3,2468.1,0.22680405]
[1747508760846,4.60139474,2468.3,2468.2,7.91480405]
[1747508761764,4.60139474,2468.3,2468.2,0.22680405]
[1747508761958,4.60139474,2468.3,2468.2,7.91480405]
[1747508762331,4.60139474,2468.3,2468.2,0.22680405]
[1747508762542,4.60139474,2468.3,2468.2,7.91480405]
[1747508763069,4.60139474,2468.3,2468.2,7.688]
[1747508763268,4.60139474,2468.3,2467.9,0.8313]
[1747508763463,4.60139474,2468.3,2468.2,7.688]
[1747508764032,0.55,2468.3,2468.2,7.688]
[1747508764665,0.55,2468.4,2468.2,7.688]
[1747508765071,0.4253,2469.0,2468.3,4.82606062]
[1747508765274,0.4253,2469.0,2468.5,0.7747]
[1747508765275,4.05034186,2469.0,2468.5,0.7747]
[1747508765471,8.0,2468.9,2468.6,5.30185524]
[1747508765646,8.0,2468.9,2468.7,8.4627]
[1747508766703,8.0,2469.0,2468.7,8.4627]
[1747508767466,0.4253,2469.5,2468.7,0.7747]
[1747508767646,4.05030243,2469.0,2468.8,8.11597914]
[1747508767832,0.55,2469.0,2468.8,8.11597914]
[1747508768339,4.05003907,2469.2,2468.8,8.11597914]
[1747508768528,4.04874691,2469.9,2468.9,4.27677446]
[1747508768730,4.04980223,2469.3,2469.0,1.99133434]
[1747508768930,4.04965099,2469.4,2469.0,1.99133434]
[1747508769130,4.04965198,2469.4,2469.0,1.99133434]
[1747508769368,4.04974714,2469.3,2469.0,1.99133434]
[1747508769869,3.99974714,2469.3,2469.0,1.99133434]
[1747508770833,4.05005872,2469.1,2469.0,1.99133434]
[1747508771029,4.05005872,2469.1,2469.0,8.4607]
[1747508771233,4.04977245,2469.3,2469.0,8.4607]
[1747508771234,4.04998475,2469.2,2469.0,8.4607]
[1747508771434,4.05005872,2469.1,2469.0,0.7747]
[1747508771766,4.59996184,2469.2,2469.0,8.4607]
[1747508771966,4.59996184,2469.2,2469.1,1.61417]
[1747508772165,4.59981075,2469.3,2469.1,1.61417]
[1747508772368,8.4253,2469.8,2469.1,1.61417]
[1747508772542,4.04957475,2469.4,2469.1,1.61417]
[1747508773984,0.55,2469.4,2469.1,1.61417]
[1747508774185,0.55,2469.5,2469.0,0.7747]
[1747508774487,4.59973069,2469.3,2469.2,7.68]
[1747508777453,4.59973069,2469.3,2469.0,0.7747]
[1747508777454,4.05005872,2469.1,2468.9,7.679]
[1747508777653,4.05005872,2469.1,2468.8,0.99646899]
[1747508777880,4.05005872,2469.1,2469.0,7.68]
[1747508779190,4.59998024,2469.2,2469.0,7.68]
[1747508779395,0.55,2469.3,2469.0,7.68]
[1747508779598,0.55,2469.3,2469.0,9.72057816]
[1747508779761,4.59982217,2469.3,2469.0,9.72057816]
[1747508779963,4.049937,2469.2,2468.8,0.99646899]
[1747508780160,4.60022276,2469.0,2468.9,0.226094]
[1747508780480,4.60022276,2469.0,2468.9,7.906094]
[1747508781090,4.60022276,2469.0,2468.9,7.68]
[1747508781302,0.55,2469.1,2468.9,7.68]
[1747508781524,0.55,2469.6,2468.9,11.73031454]
[1747508781677,12.5996996,2469.4,2469.0,1.25242145]
[1747508781871,8.55,2469.4,2469.1,0.7587]
[1747508782078,0.55,2469.4,2469.2,4.04976485]
[1747508782307,4.04891084,2469.8,2469.2,4.04980091]
[1747508782608,4.04938988,2469.6,2469.2,7.678]
[1747508782807,4.04941397,2469.5,2469.3,1.24866687]
[1747508783114,4.04941397,2469.5,2469.4,7.68]
[1747508783272,4.04910219,2469.7,2469.4,7.68]
[1747508783273,4.59931829,2469.6,2469.4,7.68]
[1747508784321,4.59956669,2469.4,2469.3,7.678]
[1747508784525,4.59956669,2469.4,2469.3,15.358]
[1747508784703,4.59956669,2469.4,2469.1,18.2507]
[1747508784905,4.04973069,2469.3,2469.2,7.68]
[1747508785226,0.55,2469.4,2469.2,7.68]
[1747508785227,4.5996481,2469.4,2469.2,7.68]
[1747508785388,4.5996481,2469.4,2469.2,8.06620917]
[1747508785730,4.04973069,2469.3,2469.2,8.06620917]
[1747508785890,4.04973069,2469.3,2469.2,8.06520917]
[1747508786727,4.04973069,2469.3,2469.2,8.29156045]
[1747508787114,0.55,2469.5,2469.2,9.70669623]
[1747508787316,4.59948076,2469.5,2469.3,0.38620917]
[1747508788531,4.59948076,2469.5,2469.4,0.22652643]
[1747508789801,5.59948076,2469.5,2469.4,7.90552643]
[1747508792337,14.05904555,2469.5,2469.4,0.22652643]
[1747508792496,14.02478076,2469.5,2469.4,0.22652643]
[1747508793026,4.59976838,2469.3,2469.1,17.492]
[1747508793228,4.59976838,2469.3,2469.2,7.678]
[1747508793694,4.59976838,2469.3,2469.2,7.90498865]
[1747508794849,4.59976838,2469.3,2469.2,0.61456695]
[1747508795014,4.59976838,2469.3,2469.2,8.29256695]
[1747508797415,4.59973069,2469.3,2469.2,8.29256695]
[1747508797808,4.59973069,2469.3,2469.2,8.29356695]
[1747508799551,4.59973069,2469.3,2469.2,0.61456695]
[1747508799742,4.59973069,2469.3,2469.2,8.29356695]
[1747508799743,5.02503069,2469.3,2469.2,8.29356695]
[1747508800251,5.02503069,2469.3,2469.2,0.61456695]
[1747508802627,14.86676154,2469.3,2469.2,0.61456695]
[1747508802822,14.83249675,2469.3,2469.2,0.61456695]
[1747508803135,14.83249675,2469.3,2469.2,0.3875783]
[1747508803348,13.02503069,2469.3,2469.2,0.3875783]
[1747508805127,4.60005872,2469.1,2469.0,8.16307117]
[1747508805329,12.60005872,2469.1,2469.0,8.16307117]
[1747508806061,12.60005872,2469.1,2469.0,8.39038364]
[1747508806559,12.60005872,2469.1,2469.0,8.77831015]
[1747508806764,12.60005872,2469.1,2469.0,8.29423898]
[1747508806938,12.60005872,2469.1,2469.0,0.61523898]
[1747508807855,14.00005872,2469.1,2469.0,0.61523898]
[1747508808165,12.60005872,2469.1,2469.0,0.61523898]
[1747508809426,1.4253,2469.5,2469.0,0.61523898]
[1747508809643,4.04981688,2469.3,2469.0,1.53112322]
[1747508809837,4.59991644,2469.2,2469.0,1.53112322]
[1747508810249,4.59991644,2469.2,2469.1,0.22731247]
[1747508810736,4.59991644,2469.2,2469.1,0.61523898]
[1747508810737,12.63418123,2469.2,2469.1,0.61523898]
[1747508811061,12.59991644,2469.2,2469.1,0.61523898]
[1747508812788,13.99991644,2469.2,2469.1,0.61523898]
[1747508814283,12.59991644,2469.2,2469.1,0.61523898]
[1747508817965,13.19991644,2469.2,2469.1,0.61523898]
[1747508819099,15.35018977,2469.2,2469.1,0.61523898]
[1747508819759,4.60071495,2468.7,2468.6,0.48407117]
[1747508819959,13.06027974,2468.7,2468.6,0.48407117]
[1747508820161,13.02601495,2468.7,2468.6,0.48407117]
[1747508821457,23.07601495,2468.7,2468.6,0.48407117]
[1747508821657,29.3990969,2468.7,2468.6,0.48407117]
[1747508822195,15.49156776,2468.5,2468.4,0.64350334]
[1747508822371,0.55,2467.4,2467.3,8.4391]
[1747508822977,0.55,2467.4,2467.3,8.66583748]
[1747508823176,0.55,2467.4,2467.3,9.05283971]
[1747508823406,0.55,2467.4,2467.3,9.95812368]
[1747508824199,0.55,2467.5,2467.3,9.95812368]
[1747508824399,0.55,2467.5,2467.3,14.01103708]
[1747508824708,0.55,2467.6,2467.3,14.01103708]
[1747508824889,0.55,2467.6,2467.4,1.40110371]
[1747508825385,4.60252543,2467.6,2467.4,1.40110371]
[1747508825889,4.05220011,2467.8,2467.4,1.40110371]
[1747508825890,0.4253,2468.3,2467.8,4.05209068]
[1747508826091,16.58212877,2468.7,2468.1,4.05168814]
[1747508826291,4.05104832,2468.5,2468.1,0.89184355]
[1747508826495,0.55,2468.4,2468.1,0.89184355]
[1747508826704,4.05104832,2468.5,2468.1,0.89184355]
[1747508826887,4.05124399,2468.4,2468.1,0.89184355]
[1747508827215,11.72361576,2468.8,2468.3,4.05124669]
[1747508827376,11.72361576,2468.8,2468.3,5.39067571]
[1747508827577,0.55,2468.6,2468.3,1.33942902]
[1747508827780,4.60089718,2468.6,2468.3,1.33942902]
[1747508827980,4.05112102,2468.5,2468.2,8.4512]
[1747508828674,4.05121737,2468.4,2468.2,8.4512]
[1747508829333,0.55,2468.5,2468.2,8.4512]
[1747508829825,4.05122085,2468.4,2468.3,7.677]
[1747508830026,0.55,2468.5,2468.3,7.677]
[1747508830249,4.05124642,2468.4,2468.3,7.677]
[1747508830620,4.05124642,2468.4,2468.2,0.7742]
[1747508830621,4.60137138,2468.3,2468.2,0.7742]
[1747508830797,0.55,2468.3,2468.2,8.4512]
[1747508831131,0.55,2468.4,2468.2,9.29632]
[1747508831635,0.4253,2468.8,2468.2,9.29632]
[1747508831833,8.55,2468.6,2468.2,13.34775648]
[1747508832029,12.60090744,2468.6,2468.2,13.34775648]
[1747508832231,6.00090744,2468.6,2468.2,13.34775648]
[1747508832535,6.00090744,2468.6,2468.3,1.33477565]
[1747508832837,4.05106299,2468.5,2468.3,1.33477565]
[1747508833425,6.00096861,2468.6,2468.3,1.33477565]
[1747508834454,4.05120725,2468.4,2468.3,1.33477565]
[1747508834749,4.05111176,2468.5,2468.3,1.33477565]
[1747508834951,1.95,2468.6,2468.3,1.33477565]
[1747508835150,8.55,2468.6,2468.3,1.33477565]
[1747508835852,4.60091219,2468.6,2468.3,1.33477565]
[1747508836152,6.51497427,2469.3,2468.2,12.50265248]
[1747508836153,0.4253,2469.3,2468.5,4.85784162]
[1747508836457,4.05045575,2468.9,2468.6,0.8069]
[1747508836753,0.55,2468.8,2468.7,7.672]
[1747508837257,4.05031784,2469.0,2468.7,8.92499167]
[1747508837934,1.4,2468.8,2468.7,8.92499167]
[1747508838955,5.45055087,2468.8,2468.7,8.92499167]
[1747508839314,1.4,2468.8,2468.7,8.92499167]
[1747508841237,5.45055087,2468.8,2468.7,7.671]
[1747508841437,1.4,2468.8,2468.7,7.671]
[1747508842224,4.04979579,2469.3,2468.7,8.4787]
[1747508842425,4.04988082,2469.3,2468.9,0.8077]
[1747508842644,0.55,2469.2,2469.0,0.50844882]
[1747508842851,4.59989499,2469.2,2469.0,0.50844882]
[1747508843357,4.59977374,2469.3,2469.0,0.50844882]
[1747508843659,1.0,2469.5,2469.3,0.8077]
[1747508843864,1.0,2469.5,2469.3,8.4787]
[1747508844069,1.0,2469.5,2469.4,0.85191946]
[1747508844373,1.0,2469.5,2469.4,1.07813063]
[1747508844572,1.0,2469.5,2469.4,0.22621117]
[1747508845136,1.0,2469.5,2469.4,1.03391117]
[1747508846037,1.0,2469.5,2469.4,5.46935016]
[1747508847460,1.0,2469.5,2469.4,20.80735016]
[1747508847663,1.0,2469.5,2469.4,23.29305774]
[1747508847978,4.04795612,2470.4,2469.4,23.29305774]
[1747508847979,0.4253,2470.7,2470.0,0.7534]
[1747508848275,0.4253,2470.7,2470.1,7.669]
[1747508848466,4.04807931,2470.4,2470.1,7.669]
[1747508848662,4.04810279,2470.3,2470.1,7.669]
[1747508849073,4.04776283,2470.6,2470.1,8.51124]
[1747508849277,4.04794959,2470.4,2470.1,8.51124]
[1747508849593,4.04737478,2470.8,2470.3,4.0480608]
[1747508849766,4.04737478,2470.8,2470.4,7.667]
[1747508850991,4.04744572,2470.7,2470.4,7.667]
[1747508851556,0.55,2470.8,2470.5,0.7789]
[1747508851757,0.55,2470.8,2470.6,7.668]
[1747508852753,4.04880268,2471.1,2470.6,7.668]
[1747508852754,0.00192495,2471.1,2470.6,7.668]
[1747508852958,0.00192495,2471.1,2470.6,11.75596696]
[1747508852959,0.55,2471.0,2470.6,11.75596696]
[1747508853194,4.59705043,2471.0,2470.6,7.668]
[1747508853397,4.04712719,2470.9,2470.6,7.668]
[1747508853587,4.04736582,2470.8,2470.7,7.667]
[1747508853895,4.04719931,2470.9,2470.7,7.667]
[1747508854068,4.04707305,2471.0,2470.7,7.667]
[1747508854274,4.59703185,2471.0,2470.7,7.667]
[1747508854471,8.0,2471.2,2470.7,7.667]
[1747508854773,0.55,2471.1,2470.7,7.667]
[1747508854968,0.55,2471.0,2470.7,7.667]
[1747508855194,4.04695096,2471.0,2470.7,7.667]
[1747508855408,0.55,2471.0,2470.7,7.667]
[1747508855602,4.04687307,2471.1,2470.8,0.8015]
[1747508855603,12.04682098,2471.1,2470.8,0.8015]
[1747508856097,4.04710834,2470.9,2470.8,0.8015]
[1747508856303,4.04735457,2470.8,2470.6,0.8015]
[1747508856597,4.04735457,2470.8,2470.7,7.667]
[1747508856813,0.55,2471.0,2470.7,7.667]
[1747508856965,4.59701959,2471.0,2470.7,7.667]
[1747508857307,4.59701959,2471.0,2470.6,8.4655]
[1747508857308,4.04714687,2470.9,2470.6,0.8015]
[1747508857476,4.59702936,2471.0,2470.8,7.666]
[1747508858180,4.04668747,2471.2,2470.9,0.8015]
[1747508858382,4.04706515,2471.0,2470.8,7.666]
[1747508858570,4.04687716,2471.1,2470.9,7.666]
[1747508859182,4.04687716,2471.1,2470.7,8.4645]
[1747508859183,0.55,2471.3,2471.0,7.666]
[1747508859397,4.59694455,2471.0,2470.9,7.666]
[1747508860500,0.55,2471.0,2470.9,7.666]
[1747508860806,4.59694455,2471.0,2470.9,7.666]
[1747508861509,4.59727213,2470.8,2470.7,7.665]
[1747508862619,0.55,2470.5,2470.4,18.2754]
[1747508862777,4.59776361,2470.5,2470.4,25.9404]
[1747508862972,4.59776361,2470.5,2470.4,25.153]
[1747508863178,0.55,2470.6,2470.4,25.153]
[1747508863480,4.59760278,2470.6,2470.4,25.153]
[1747508863793,0.55,2470.5,2470.4,25.153]
[1747508863971,4.59776361,2470.5,2470.4,25.153]
[1747508864173,0.55,2470.5,2470.4,25.153]
[1747508864375,4.04752107,2470.7,2470.4,25.153]
[1747508864810,4.04764753,2470.6,2470.4,25.153]
[1747508865182,4.04765026,2470.6,2470.4,25.153]
[1747508866228,8.0,2470.7,2470.2,0.7874]
[1747508866384,4.04808455,2470.4,2470.3,7.661]
[1747508867510,4.04809132,2470.3,2470.2,0.7874]
[1747508867824,4.04809132,2470.3,2470.2,8.4484]
[1747508868185,4.04809132,2470.3,2470.2,7.661]
[1747508868516,4.04837371,2470.2,2470.0,0.792]
[1747508868715,4.04837371,2470.2,2470.1,7.661]
[1747508868716,4.5982552,2470.2,2470.1,7.661]
[1747508869489,4.04846545,2470.1,2469.8,0.792]
[1747508869695,0.55,2470.0,2469.6,7.661]
[1747508869932,4.04901467,2469.8,2469.6,8.5063]
[1747508870306,4.04907478,2469.7,2469.6,8.5063]
[1747508870501,4.04907478,2469.7,2469.6,1.07121781]
[1747508870709,4.04907478,2469.7,2469.6,7.88691781]
[1747508871115,4.04907478,2469.7,2469.6,0.22591781]
[1747508871428,4.59907478,2469.7,2469.6,0.22591781]
[1747508871593,4.04923874,2469.6,2469.5,7.661]
[1747508871943,4.04923874,2469.6,2469.5,8.04683637]
[1747508872231,4.04923874,2469.6,2469.5,8.27311716]
[1747508872429,0.55,2469.7,2469.5,8.27311716]
[1747508872814,4.59907478,2469.7,2469.6,0.22628079]
[1747508874791,4.59907478,2469.7,2469.6,0.61260721]
[1747508876494,4.59907478,2469.7,2469.4,7.662]
[1747508876812,4.04940271,2469.5,2469.4,7.662]
[1747508877008,4.04940271,2469.5,2469.4,8.5074]
[1747508877532,4.04940271,2469.5,2469.4,1.23172172]
[1747508877729,4.04940271,2469.5,2469.4,8.27470631]
[1747508877924,4.04940271,2469.5,2469.4,0.61270631]
[1747508878227,4.04940271,2469.5,2469.4,8.27470631]
[1747508878443,0.55,2469.6,2469.4,8.27470631]
[1747508878626,4.59925186,2469.6,2469.4,8.27470631]
[1747508878939,4.04891363,2469.8,2469.5,1.21379235]
[1747508879310,4.04891363,2469.8,2469.6,0.22638459]
[1747508879714,4.04907478,2469.7,2469.6,0.22638459]
[1747508880344,4.04907478,2469.7,2469.5,0.82747063]
[1747508881346,4.04891588,2469.8,2469.6,0.84894706]
[1747508881547,4.04907478,2469.7,2469.6,0.84894706]
[1747508881765,4.59940271,2469.5,2469.4,7.663]
[1747508882059,4.05000585,2469.2,2469.0,18.273]
[1747508882264,4.05000585,2469.2,2469.1,8.3718261]
[1747508882625,4.04931349,2469.6,2469.1,8.3718261]
[1747508882824,1.4,2469.5,2469.3,4.04965615]
[1747508883025,4.59908364,2469.7,2469.4,0.792]
[1747508884764,0.03426479,2469.6,2469.4,0.792]
[1747508884930,4.59940271,2469.5,2469.4,7.663]
[1747508885130,4.59940271,2469.5,2469.4,7.88918284]
[1747508886071,4.59940271,2469.5,2469.4,7.663]
[1747508886981,0.55,2469.5,2469.4,7.663]
[1747508887180,4.04909059,2469.7,2469.4,8.4293]
[1747508887781,4.04925777,2469.6,2469.4,8.4293]
[1747508888582,4.04925777,2469.6,2469.4,0.7663]
[1747508888746,4.04940271,2469.5,2469.4,7.663]
[1747508889575,4.59940271,2469.5,2469.4,0.22635491]
[1747508889882,0.55,2469.5,2469.4,0.22635491]
[1747508890085,4.59940271,2469.5,2469.4,0.22635491]
[1747508890706,0.4253,2470.0,2469.4,0.22635491]
[1747508890837,4.04918248,2469.7,2469.4,1.42026817]
[1747508891037,4.04918248,2469.7,2469.5,0.7751]
[1747508891238,4.04918248,2469.7,2469.6,0.22635491]
[1747508893038,4.04918248,2469.7,2469.6,0.61316372]
[1747508893555,0.4253,2470.5,2469.9,0.7751]
[1747508893755,4.04823032,2470.3,2470.0,7.663]
[1747508893989,4.04835868,2470.2,2470.0,8.91168777]
[1747508894391,4.04835868,2470.2,2470.1,0.22635491]
[1747508894591,4.04835868,2470.2,2470.1,0.61316372]
[1747508895319,12.04818728,2470.3,2470.1,0.61316372]
[1747508896135,4.59818728,2470.3,2470.2,0.95248515]
[1747508896337,4.59818728,2470.3,2470.2,1.33929396]
[1747508896656,4.59818728,2470.3,2470.2,0.61316372]
[1747508897800,5.05775207,2470.3,2470.2,0.61316372]
[1747508898015,5.02348728,2470.3,2470.2,0.61316372]
[1747508902448,13.05775207,2470.3,2470.2,0.61316372]
[1747508902647,20.68348728,2470.3,2470.2,0.61316372]
[1747508902817,23.15662928,2470.3,2470.2,0.38680881]
[1747508903746,4.59874691,2469.9,2469.8,0.48261768]
[1747508903963,11.70861088,2470.6,2469.9,0.7633]
[1747508903964,4.0483496,2470.2,2469.9,0.7633]
[1747508904122,4.04767708,2470.6,2470.1,4.81160826]
[1747508904332,4.04767708,2470.6,2470.2,8.77384483]
[1747508904531,0.55,2470.5,2470.2,8.77384483]
[1747508904841,4.04767708,2470.6,2470.2,8.77384483]
[1747508905147,4.04738146,2470.8,2470.3,4.27489486]
[1747508905352,12.04750617,2470.7,2470.4,2.04549022]
[1747508905877,0.6,2470.6,2470.4,2.04549022]
[1747508906042,4.64759977,2470.6,2470.5,0.22683749]
[1747508906377,5.62289977,2470.6,2470.5,0.22683749]
[1747508906871,4.59776361,2470.5,2470.4,7.661]
[1747508907835,4.59776361,2470.5,2470.4,0.22667311]
[1747508908538,4.04796759,2470.4,2470.2,7.66]
[1747508908857,4.59796759,2470.4,2470.3,0.766]
[1747508909558,4.59796759,2470.4,2470.3,1.15277579]
[1747508909855,4.59796759,2470.4,2470.3,1.37941792]
[1747508913863,0.55,2470.4,2470.3,1.37941792]
[1747508914565,4.0476412,2470.6,2470.3,1.37941792]
[1747508914763,4.59751744,2470.7,2470.4,2.11856449]
[1747508915145,4.59751744,2470.7,2470.5,0.22664213]
[1747508915868,0.55,2470.7,2470.5,0.22664213]
[1747508916471,0.55,2470.7,2470.4,2.11856449]
[1747508916838,0.55,2470.7,2470.5,0.22671017]
[1747508917035,4.04759977,2470.6,2470.5,0.22671017]
[1747508917871,0.55,2470.7,2470.5,0.22671017]
[1747508918266,4.59745288,2470.7,2470.5,0.22671017]
[1747508918657,4.04759977,2470.6,2470.5,0.22671017]
[1747508918857,4.5975734,2470.7,2470.5,0.22671017]
[1747508919871,4.5975734,2470.7,2470.6,0.22671017]
[1747508920942,4.5975734,2470.7,2470.6,0.3872464]
[1747508921875,4.5975734,2470.7,2470.6,0.61395657]
[1747508925342,4.04710834,2470.9,2470.6,0.61395657]
[1747508925542,0.55,2471.1,2470.6,0.61395657]
[1747508926249,4.047064,2471.0,2470.7,0.22671017]
[1747508926447,4.047064,2471.0,2470.7,0.69287377]
[1747508926648,4.047064,2471.0,2470.8,1.1873464]
[1747508927478,4.04684918,2471.1,2470.9,0.22671017]
[1747508927680,7.658,2471.5,2470.9,0.22671017]
[1747508927846,4.04612583,2471.5,2471.0,4.84700587]
[1747508928174,0.55,2471.7,2471.1,1.49988177]
[1747508928380,4.04647988,2471.3,2471.1,1.49988177]
[1747508928587,4.47099147,2471.8,2471.1,1.49988177]
[1747508928750,4.04640134,2471.4,2471.2,0.22671017]
[1747508929167,4.04590102,2471.7,2471.2,0.22671017]
[1747508929475,4.04645328,2471.3,2471.2,7.88371017]
[1747508931160,4.04645328,2471.3,2471.2,8.27069675]
[1747508931666,4.04645328,2471.3,2471.2,0.61369675]
[1747508932458,4.04645328,2471.3,2471.2,0.22671017]
[1747508932892,4.04661702,2471.2,2471.1,1.2731716]
[1747508933192,4.0467062,2471.2,2471.0,8.4571]
[1747508933999,4.04678078,2471.1,2471.0,8.4571]
[1747508934695,4.04695742,2471.0,2470.7,9.41178128]
[1747508934865,4.04653953,2471.3,2471.0,7.656]
[1747508935066,4.0463432,2471.4,2471.1,1.5726]
[1747508935282,4.04617534,2471.5,2471.1,1.5726]
[1747508935283,4.04646065,2471.3,2471.1,1.5726]
[1747508935996,4.04646065,2471.3,2471.2,0.22665025]
[1747508936797,4.04646065,2471.3,2471.1,1.5726]
[1747508938099,4.04661702,2471.2,2471.1,1.5726]
[1747508938294,4.04661702,2471.2,2471.1,1.79922197]
[1747508938699,4.04655025,2471.3,2471.1,1.79922197]
[1747508938994,4.04655025,2471.3,2471.2,0.22662197]
[1747508939700,4.59655025,2471.3,2471.2,0.22662197]
[1747508940488,4.04678078,2471.1,2471.0,7.656]
[1747508940691,4.04678078,2471.1,2471.0,8.5016]
[1747508940882,4.04671542,2471.2,2471.0,8.5016]
[1747508941394,4.59655025,2471.3,2471.0,8.5016]
[1747508941699,4.59655025,2471.3,2471.1,0.61346664]
[1747508942303,0.55,2471.4,2471.2,0.22665113]
[1747508942464,4.59638197,2471.4,2471.2,0.22665113]
[1747508943308,4.59638197,2471.4,2471.0,8.5016]
[1747508943484,4.59638197,2471.4,2471.1,1.33486349]
[1747508944316,4.04645495,2471.3,2471.1,1.33486349]
[1747508944622,4.04645495,2471.3,2471.2,0.61358365]
[1747508945120,4.4709393,2471.8,2471.2,0.61358365]
[1747508945121,1.24940608,2472.0,2471.3,0.7784]
[1747508945327,5.29480671,2472.0,2471.3,0.7784]
[1747508945612,4.04572184,2471.8,2471.4,15.53669277]
[1747508945981,4.04572184,2471.8,2471.4,15.92358365]
[1747508946415,4.04572184,2471.8,2471.5,0.22669277]
[1747508946729,4.04572184,2471.8,2471.6,7.655]
[1747508946730,4.04579843,2471.7,2471.6,7.655]
[1747508946885,4.04596212,2471.6,2471.5,0.22669277]
[1747508947221,4.04587911,2471.7,2471.5,7.88169277]